bitfinex-derivatives/quotes_ETHF0:USTF0_20240927
["timestamp","ask_amount","ask_price","bid_price","bid_amount"]
[1727398533844,0.67624,2641.0,2640.8,0.7855]
[1727398534038,0.3734,2641.0,2640.8,0.7855]
[1727398534249,0.67624,2641.0,2640.8,0.7855]
[1727398534440,0.3734,2641.0,2640.8,0.7855]
[1727398534637,0.3973,2641.4,2640.9,2.96]
[1727398534841,0.3973,2641.4,2641.0,3.2078]
[1727398535048,0.30282,2641.2,2641.0,3.2078]
[1727398535541,0.30281,2641.3,2641.0,3.2078]
[1727398536049,0.30282,2641.1,2641.0,3.2078]
[1727398536254,0.30283,2641.0,2640.9,0.3922]
[1727398536448,0.30283,2641.0,2640.8,0.7855]
[1727398536749,0.67835,2640.9,2640.8,0.7855]
[1727398539435,0.30285,2640.9,2640.8,0.7855]
[1727398539637,0.3916,2641.2,2640.8,0.7855]
[1727398539837,0.30284,2641.0,2640.9,3.2078]
[1727398540056,0.30284,2641.0,2640.8,0.7855]
[1727398540350,0.30284,2641.0,2640.9,3.3]
[1727398541639,0.30284,2641.0,2640.8,0.7855]
[1727398542148,0.30284,2641.0,2640.8,4.0855]
[1727398542357,0.30285,2640.9,2640.8,0.7855]
[1727398542745,0.30287,2640.7,2640.6,3.2078]
[1727398544249,0.7504,2640.8,2640.6,3.2078]
[1727398544651,0.30287,2640.7,2640.6,3.2078]
[1727398544953,0.30287,2640.8,2640.6,3.2078]
[1727398545152,0.30287,2640.7,2640.6,3.2078]
[1727398546449,0.30287,2640.7,2640.4,4.0611]
[1727398546450,0.26503,2640.5,2640.4,4.0611]
[1727398546749,0.66256,2640.6,2640.1,0.3908]
[1727398546954,0.8003,2640.4,2640.1,0.3908]
[1727398547375,0.26506,2640.2,2640.1,0.3908]
[1727398547558,0.26506,2640.2,2640.0,0.7835]
[1727398547850,0.26507,2640.1,2640.0,0.7835]
[1727398548152,0.65757,2640.1,2640.0,0.7835]
[1727398548565,0.26508,2640.0,2639.7,0.98342776]
[1727398548860,0.26509,2639.9,2639.7,0.3836]
[1727398549065,0.26509,2639.9,2639.7,3.6836]
[1727398549562,0.26509,2640.0,2639.7,3.6836]
[1727398549859,0.65758,2640.1,2639.7,3.6836]
[1727398550053,0.3925,2640.1,2639.8,6.1678]
[1727398550252,1.06534,2640.4,2640.0,2.96]
[1727398550453,0.67014,2640.4,2640.1,0.4004]
[1727398550755,0.67014,2640.4,2640.1,3.9856]
[1727398550957,0.67014,2640.4,2640.2,0.3818]
[1727398551357,0.4051,2640.4,2640.2,0.3818]
[1727398551554,0.67015,2640.4,2640.2,0.3818]
[1727398551858,0.4051,2640.4,2640.2,0.3818]
[1727398552052,0.26505,2640.3,2640.2,0.3818]
[1727398552366,0.4051,2640.4,2640.2,0.3818]
[1727398553159,0.26505,2640.3,2640.2,0.3818]
[1727398561466,0.26506,2640.2,2640.1,0.3774]
[1727398561669,9.7872,2640.2,2639.7,0.98342776]
[1727398561882,3.2078,2640.4,2639.5,1.78172776]
[1727398561883,0.26512,2639.6,2639.5,1.78172776]
[1727398562395,0.26512,2639.6,2639.5,0.7983]
[1727398563466,0.26514,2639.4,2639.3,4.19122776]
[1727398563673,0.26514,2639.4,2639.3,3.2078]
[1727398564861,0.411,2639.5,2639.3,3.2078]
[1727398565369,0.26513,2639.5,2639.3,3.6067]
[1727398566275,0.3839,2639.8,2639.3,3.6067]
[1727398566468,0.088,2640.4,2639.6,6.1678]
[1727398566663,0.379,2640.3,2639.8,2.96]
[1727398566867,0.379,2640.3,2639.9,0.3989]
[1727398567277,0.26506,2640.2,2639.9,0.3989]
[1727398567478,0.26507,2640.1,2639.9,0.3989]
[1727398568168,0.26507,2640.1,2639.9,3.6067]
[1727398569069,0.26507,2640.1,2639.9,0.3989]
[1727398570885,0.64405,2640.3,2639.9,0.3989]
[1727398571173,0.26507,2640.2,2639.9,0.3989]
[1727398571371,0.379,2640.3,2639.9,0.3989]
[1727398571875,0.26507,2640.1,2639.9,0.3989]
[1727398572077,0.379,2640.3,2639.9,0.3989]
[1727398572078,0.26506,2640.2,2639.9,0.3989]
[1727398572377,0.379,2640.3,2639.9,0.3989]
[1727398572378,0.26507,2640.1,2639.9,0.3989]
[1727398573481,0.26506,2640.2,2639.9,0.3989]
[1727398573678,0.26506,2640.2,2639.9,3.6067]
[1727398574081,0.26506,2640.2,2639.9,0.3989]
[1727398574277,0.26506,2640.2,2639.9,3.6067]
[1727398575175,0.088,2641.0,2640.1,3.22507]
[1727398575374,1.03439,2640.9,2640.2,3.7435]
[1727398575580,0.66251,2640.8,2640.2,3.7435]
[1727398575781,0.26505,2640.4,2640.3,3.3]
[1727398577407,0.26505,2640.3,2640.2,0.7835]
[1727398577888,3.62258,2640.5,2639.9,3.6989]
[1727398578183,0.26507,2640.1,2639.9,3.6989]
[1727398578385,0.26508,2640.0,2639.9,3.6989]
[1727398578570,0.26508,2640.0,2639.8,0.7621]
[1727398578770,0.26509,2639.9,2639.8,0.7621]
[1727398579275,0.26509,2639.9,2639.8,4.0621]
[1727398579779,3.788,2639.9,2639.3,0.98342776]
[1727398579983,0.26511,2639.7,2639.4,3.9855]
[1727398580179,0.26511,2639.7,2639.5,3.3]
[1727398580879,0.66731,2639.8,2639.5,3.3]
[1727398581185,0.26508,2640.0,2639.5,3.3]
[1727398581585,0.7583,2640.1,2639.5,3.3]
[1727398582077,0.26508,2640.0,2639.5,3.3]
[1727398582279,0.26509,2639.9,2639.5,3.3]
[1727398583083,0.2651,2639.8,2639.5,3.3]
[1727398583285,0.26511,2639.8,2639.5,3.3]
[1727398583590,0.2651,2639.9,2639.5,3.3]
[1727398583982,0.2651,2639.9,2639.7,3.2078]
[1727398584285,0.2651,2639.9,2639.5,3.3]
[1727398584684,0.7583,2640.1,2639.7,3.2078]
[1727398584901,0.7583,2640.1,2639.8,0.3726]
[1727398585286,0.26508,2640.0,2639.8,0.3726]
[1727398585484,0.26509,2639.9,2639.8,0.3726]
[1727398586775,0.26509,2640.0,2639.8,0.3726]
[1727398586983,0.26509,2640.0,2639.9,0.388]
[1727398593794,0.26509,2639.9,2639.8,0.3726]
[1727398595499,0.26509,2640.0,2639.8,0.3726]
[1727398596989,0.26509,2640.0,2639.8,1.35602776]
[1727398597190,0.26509,2639.9,2639.8,1.35602776]
[1727398598999,0.26509,2639.9,2639.8,0.3726]
[1727398599396,0.2651,2639.9,2639.6,1.75352776]
[1727398601092,0.26508,2640.0,2639.6,1.75352776]
[1727398601286,0.26508,2640.0,2639.7,0.98342776]
[1727398606305,0.26508,2640.0,2639.8,0.98342776]
[1727398606600,0.26507,2640.1,2639.8,2.34342776]
[1727398606906,0.26507,2640.1,2639.9,0.3926]
[1727398607106,0.26507,2640.1,2640.0,0.3975]
[1727398609791,0.26508,2640.0,2639.9,0.3926]
[1727398611010,3.2078,2640.4,2639.8,2.34342776]
[1727398611301,0.26507,2640.1,2640.0,2.34342776]
[1727398611508,0.26507,2640.1,2640.0,3.81675188]
[1727398612108,0.26506,2640.2,2640.0,3.81675188]
[1727398612303,0.26506,2640.2,2640.0,2.34342776]
[1727398612611,0.26506,2640.2,2640.1,0.98342776]
[1727398614105,0.26506,2640.2,2640.0,2.34342776]
[1727398614602,0.26505,2640.3,2640.1,0.4013]
[1727398614795,0.26505,2640.3,2640.1,1.38472776]
[1727398615305,0.26506,2640.2,2640.1,1.38472776]
[1727398616100,0.26506,2640.2,2640.1,0.4013]
[1727398616298,0.26506,2640.2,2640.1,1.38472776]
[1727398616500,0.26506,2640.2,2639.9,1.85707822]
[1727398616501,0.26507,2640.1,2640.0,0.98342776]
[1727398616801,0.66997,2640.1,2640.0,0.98342776]
[1727398616999,0.66997,2640.1,2640.0,2.45712809]
[1727398617906,0.66997,2640.1,2640.0,0.98342776]
[1727398618106,0.66997,2640.1,2640.0,2.45700526]
[1727398618319,0.66997,2640.1,2640.0,0.98342776]
[1727398618813,14.7607,2640.1,2639.8,0.98342776]
[1727398619001,1.36,2639.9,2639.4,0.98342776]
[1727398619201,0.26514,2639.4,2639.3,0.98342776]
[1727398619411,0.26514,2639.4,2639.3,0.98367597]
[1727398619612,0.26514,2639.4,2639.3,2.45788715]
[1727398619811,0.26514,2639.4,2639.3,0.98367597]
[1727398621409,1.41204,2639.5,2639.3,0.98367597]
[1727398621609,1.1469,2639.5,2639.3,2.34367597]
[1727398621825,1.1469,2639.5,2639.4,0.98367597]
[1727398622321,0.3792,2639.5,2639.4,0.98367597]
[1727398622507,0.3792,2639.5,2639.4,2.45754469]
[1727398622808,0.3792,2639.5,2639.4,2.45731844]
[1727398623011,0.3792,2639.5,2639.4,1.47386872]
[1727398623405,0.3792,2639.5,2639.4,2.45745682]
[1727398623609,0.3792,2639.5,2639.4,2.94994694]
[1727398623807,0.3792,2639.5,2639.4,2.45778615]
[1727398624016,0.3792,2639.5,2639.4,0.98391743]
[1727398624017,0.64433,2639.5,2639.4,0.98391743]
[1727398624513,0.3792,2639.5,2639.4,0.98391743]
[1727398624902,0.26511,2639.7,2639.4,5.66651319]
[1727398625208,0.26511,2639.7,2639.5,1.38121743]
[1727398625510,0.26511,2639.7,2639.5,1.1754]
[1727398625907,0.7902,2639.8,2639.5,1.1754]
[1727398626115,0.26511,2639.7,2639.5,1.1754]
[1727398626720,0.26512,2639.6,2639.5,1.1754]
[1727398629321,0.7902,2639.8,2639.5,1.1754]
[1727398629517,0.3706,2639.9,2639.6,2.96]
[1727398629719,0.26512,2639.6,2639.5,1.1754]
[1727398630119,0.26512,2639.6,2639.5,4.4754]
[1727398630609,0.6357,2639.9,2639.5,4.4754]
[1727398630815,0.2651,2639.8,2639.5,5.45931743]
[1727398631015,0.63569,2639.9,2639.5,5.45931743]
[1727398631624,0.26508,2640.0,2639.6,7.15171743]
[1727398631923,0.756,2640.2,2639.6,7.15171743]
[1727398632111,0.756,2640.2,2639.6,2.96]
[1727398632313,0.26509,2640.0,2639.6,2.96]
[1727398632514,0.26509,2640.0,2639.6,6.1678]
[1727398633322,0.26509,2640.0,2639.6,7.15171743]
[1727398634021,0.26509,2639.9,2639.6,7.15171743]
[1727398634621,0.26509,2640.0,2639.6,7.15171743]
[1727398634923,0.26509,2640.0,2639.6,2.96]
[1727398635116,0.26509,2640.0,2639.6,7.15171743]
[1727398635311,0.26509,2639.9,2639.6,7.15171743]
[1727398636015,0.26509,2640.0,2639.6,7.15171743]
[1727398636220,0.26509,2640.0,2639.6,6.1678]
[1727398636625,0.26509,2640.0,2639.6,3.94391743]
[1727398636817,0.26509,2640.0,2639.6,7.15171743]
[1727398637925,0.26509,2639.9,2639.6,7.15171743]
[1727398638422,3.2078,2640.0,2639.5,5.45931743]
[1727398638628,0.3896,2639.8,2639.5,5.45931743]
[1727398639017,0.26512,2639.7,2639.5,5.45931743]
[1727398640027,0.26512,2639.6,2639.5,5.45931743]
[1727398640226,0.3896,2639.8,2639.5,6.93415074]
[1727398640522,0.26512,2639.7,2639.5,5.45931743]
[1727398640724,0.26512,2639.6,2639.5,5.45931743]
[1727398641022,0.26512,2639.6,2639.5,0.7781]
[1727398641218,0.26513,2639.5,2639.4,0.98391743]
[1727398641416,1.07189,2639.7,2639.2,1.47607822]
[1727398641617,0.63814,2639.4,2639.3,2.45911501]
[1727398641825,0.63814,2639.4,2639.3,0.98404368]
[1727398642023,0.63814,2639.4,2639.2,0.98404368]
[1727398642024,0.26515,2639.3,2639.2,0.98404368]
[1727398642525,0.373,2639.4,2639.2,0.98404368]
[1727398642721,0.26515,2639.3,2639.2,0.98404368]
[1727398644214,0.373,2639.4,2639.2,0.98404368]
[1727398644424,0.4091,2639.7,2639.2,2.34404368]
[1727398644618,0.26514,2639.5,2639.4,1.36]
[1727398645918,0.387,2639.7,2639.4,1.36]
[1727398646119,0.387,2639.7,2639.6,1.36]
[1727398646321,0.26509,2639.9,2639.6,1.36]
[1727398646525,0.65589,2640.0,2639.8,1.36]
[1727398647125,0.26509,2639.9,2639.8,1.36]
[1727398647831,0.3908,2640.0,2639.7,0.4115]
[1727398647832,0.2651,2639.8,2639.7,0.4115]
[1727398648031,0.26513,2639.5,2639.4,0.98404368]
[1727398648325,0.26512,2639.6,2639.3,1.77814368]
[1727398648525,0.26511,2639.8,2639.5,2.96]
[1727398649131,0.26511,2639.8,2639.5,3.94404368]
[1727398649925,0.3908,2640.0,2639.5,3.94404368]
[1727398650232,0.2651,2639.8,2639.5,3.94404368]
[1727398650930,0.26509,2639.9,2639.5,3.94404368]
[1727398651235,0.3908,2640.0,2639.5,3.94404368]
[1727398651431,0.2651,2639.9,2639.5,3.94404368]
[1727398652532,0.3908,2640.0,2639.5,3.94404368]
[1727398652533,0.2651,2639.8,2639.5,3.94404368]
[1727398655333,0.26509,2639.9,2639.5,3.94404368]
[1727398656029,0.2651,2639.8,2639.5,3.94404368]
[1727398656335,0.26509,2639.9,2639.5,3.94404368]
[1727398656538,0.26509,2639.9,2639.6,0.98404368]
[1727398656832,0.26509,2639.9,2639.7,0.7943]
[1727398657033,0.3908,2640.0,2639.7,4.1506]
[1727398657338,0.3908,2640.0,2639.7,5.13464368]
[1727398657339,0.26508,2640.0,2639.7,5.13464368]
[1727398658429,0.3795,2640.3,2639.7,5.13464368]
[1727398658738,0.26509,2640.0,2639.7,5.13464368]
[1727398660232,0.26508,2640.1,2639.7,5.13464368]
[1727398660432,0.3795,2640.3,2639.8,0.98404368]
[1727398660433,0.26506,2640.2,2639.8,0.98404368]
[1727398660832,0.26506,2640.2,2639.9,2.96]
[1727398661031,0.26507,2640.1,2639.9,2.96]
[1727398661542,0.26507,2640.1,2639.9,3.94404368]
[1727398661736,0.3795,2640.3,2639.9,3.94404368]
[1727398661925,0.26508,2640.1,2639.9,3.94404368]
[1727398662436,0.26508,2640.0,2639.9,3.94404368]
[1727398662634,0.26508,2640.0,2639.9,0.98404368]
[1727398663337,0.26508,2640.1,2639.8,0.98404368]
[1727398663538,0.3795,2640.3,2639.9,0.98404368]
[1727398663839,0.26508,2640.1,2639.9,0.98404368]
[1727398664031,0.26508,2640.0,2639.9,0.98404368]
[1727398664237,0.3795,2640.3,2639.9,0.98404368]
[1727398664428,0.26508,2640.1,2639.9,0.98404368]
[1727398666137,0.3795,2640.3,2639.9,0.98404368]
[1727398666138,0.26507,2640.2,2639.9,0.98404368]
[1727398666333,0.3795,2640.3,2639.9,3.94404368]
[1727398666542,0.26507,2640.2,2640.1,0.98404368]
[1727398666836,0.26507,2640.2,2640.1,1.77804368]
[1727398667336,0.26507,2640.2,2640.1,0.794]
[1727398667731,0.26507,2640.2,2640.1,1.1723]
[1727398668038,0.26507,2640.2,2640.1,2.15634368]
[1727398668233,0.26507,2640.2,2640.1,1.1723]
[1727398669529,0.26509,2639.9,2639.8,0.98404368]
[1727398670135,0.26509,2639.9,2639.7,2.17284368]
[1727398670443,0.26509,2639.9,2639.8,0.98404368]
[1727398671536,0.26508,2640.0,2639.8,0.98404368]
[1727398672642,0.26507,2640.1,2639.8,0.98404368]
[1727398672831,0.3795,2640.3,2639.9,0.98404368]
[1727398673036,0.26506,2640.2,2639.9,3.94404368]
[1727398674741,0.26506,2640.2,2640.0,0.98404368]
[1727398675039,0.26506,2640.2,2640.1,0.7697]
[1727398675237,0.26506,2640.2,2640.1,1.1697]
[1727398677644,0.26508,2640.0,2639.9,0.98404368]
[1727398677845,0.26508,2640.0,2639.9,0.4091]
[1727398678049,0.26508,2640.0,2639.9,1.39314368]
[1727398678338,0.26508,2640.0,2639.9,0.4091]
[1727398678742,0.26508,2640.0,2639.9,1.39314368]
[1727398678952,0.26508,2640.0,2639.9,0.4091]
[1727398680944,3.788,2640.0,2639.4,4.19184368]
[1727398681153,0.26514,2639.4,2639.1,0.98404368]
[1727398681446,6.1678,2639.7,2639.1,0.98404368]
[1727398681447,6.1678,2639.7,2639.2,0.3958]
[1727398681845,0.26515,2639.4,2639.2,0.3958]
[1727398682041,0.3983,2639.3,2639.2,0.3958]
[1727398683749,0.66345,2639.3,2639.2,0.3958]
[1727398683945,0.3983,2639.3,2638.8,2.96]
[1727398684151,0.3983,2639.3,2638.7,4.3543]
[1727398684450,0.26518,2639.1,2638.7,7.6543]
[1727398684845,0.4074,2639.0,2638.7,7.6543]
[1727398685038,0.4074,2639.0,2638.7,4.3543]
[1727398686951,0.66345,2639.3,2638.8,2.96]
[1727398687147,0.3938,2639.2,2638.8,2.96]
[1727398687447,0.65896,2639.2,2638.8,2.96]
[1727398688453,0.3938,2639.2,2638.8,2.96]
[1727398689248,0.3983,2639.3,2639.0,2.96]
[1727398689653,0.3983,2639.3,2639.1,0.3722]
[1727398689845,4.4537,2639.6,2639.2,3.7402]
[1727398690150,4.71882,2639.6,2639.2,3.7402]
[1727398690542,4.078,2639.6,2639.2,3.7402]
[1727398690749,4.078,2639.6,2639.4,2.96]
[1727398691952,0.4047,2639.9,2639.4,2.96]
[1727398692156,0.4047,2639.9,2639.6,2.96]
[1727398692356,0.4047,2639.9,2639.7,0.4084]
[1727398692556,0.4047,2640.2,2639.7,1.1666]
[1727398693551,0.66977,2640.2,2639.7,1.1666]
[1727398694952,0.4047,2640.2,2639.8,2.96]
[1727398695258,0.66976,2640.2,2639.8,2.96]
[1727398695450,0.4047,2640.2,2639.8,2.96]
[1727398695654,0.66046,2640.3,2639.8,6.26]
[1727398696746,0.26506,2640.2,2639.8,6.26]
[1727398697051,0.66046,2640.3,2639.8,6.26]
[1727398697254,0.26506,2640.2,2639.8,6.26]
[1727398697462,0.26506,2640.3,2639.8,6.26]
[1727398698857,3.2078,2640.4,2639.8,6.26]
[1727398698858,0.26506,2640.2,2639.8,6.26]
[1727398699154,3.2078,2640.4,2639.8,6.26]
[1727398699361,3.2078,2640.8,2640.3,2.96]
[1727398699661,0.26501,2640.7,2640.4,1.1772]
[1727398702257,3.4728,2640.8,2640.4,1.1772]
[1727398702753,0.26501,2640.7,2640.4,1.1772]
[1727398703550,3.4728,2640.8,2640.4,1.1772]
[1727398704565,3.2078,2640.8,2640.5,2.96]
[1727398705559,0.26499,2640.9,2640.5,2.96]
[1727398707559,6.14386603,2641.1,2640.5,2.96]
[1727398708057,0.265,2640.8,2640.5,2.96]
[1727398710357,3.2078,2641.2,2640.5,2.96]
[1727398710555,0.26497,2641.1,2640.7,2.96]
[1727398710749,0.26497,2641.1,2640.8,0.3795]
[1727398711061,0.26497,2641.1,2640.9,0.7873]
[1727398712667,3.47277,2641.2,2640.9,0.7873]
[1727398712863,9.41690219,2684.5,2641.1,2.96]
[1727398712864,3.2958,2641.9,2641.1,2.96]
[1727398713056,0.64411,2641.7,2641.4,2.96]
[1727398713257,0.26492,2641.6,2641.4,2.96]
[1727398713853,0.64412,2641.7,2641.4,2.96]
[1727398714060,0.26492,2641.6,2641.5,0.389]
[1727398714567,0.3792,2641.7,2641.5,0.389]
[1727398714763,0.26492,2641.6,2641.5,0.389]
[1727398716262,0.3792,2641.7,2641.2,0.3899]
[1727398716768,0.26493,2641.6,2641.2,3.3499]
[1727398717758,0.26493,2641.5,2641.2,3.3499]
[1727398719060,0.3792,2641.7,2641.2,3.3499]
[1727398719061,0.26493,2641.6,2641.2,3.3499]
[1727398719566,0.26493,2641.6,2641.2,6.5577]
[1727398720164,0.26493,2641.6,2641.2,3.3499]
[1727398720761,0.26493,2641.5,2641.2,3.3499]
[1727398720969,0.26492,2641.6,2641.2,3.3499]
[1727398724867,0.26493,2641.6,2641.2,3.3499]
[1727398726571,0.3792,2641.7,2641.2,3.3499]
[1727398726871,0.3792,2641.7,2641.4,2.96]
[1727398727079,0.3792,2641.7,2641.5,0.4066]
[1727398727265,0.3792,2641.7,2641.6,0.3818]
[1727398727568,0.3792,2641.7,2641.6,0.7869]
[1727398727569,0.64411,2641.7,2641.6,0.7869]
[1727398727771,0.3883,2641.9,2641.6,0.7869]
[1727398727961,0.4013,2641.8,2641.6,0.7869]
[1727398728164,0.4013,2641.8,2641.6,3.7469]
[1727398728473,1.1851,2642.4,2641.6,3.7469]
[1727398728663,0.26487,2642.2,2641.8,2.96]
[1727398728867,1.1851,2642.4,2641.8,2.96]
[1727398728868,0.26486,2642.3,2641.8,2.96]
[1727398729571,0.26486,2642.2,2641.8,2.96]
[1727398730568,1.1851,2642.4,2641.8,2.96]
[1727398731069,0.26486,2642.2,2641.8,2.96]
[1727398732670,1.1851,2642.4,2641.8,2.96]
[1727398732974,0.26486,2642.2,2641.8,2.96]
[1727398733372,1.1851,2642.4,2641.8,2.96]
[1727398733666,0.26488,2642.1,2641.8,2.96]
[1727398735769,1.1851,2642.4,2641.8,2.96]
[1727398735979,0.26487,2642.1,2641.8,2.96]
[1727398736564,0.26487,2642.1,2641.8,6.1678]
[1727398737378,0.26487,2642.2,2641.8,2.96]
[1727398738077,0.26485,2642.3,2642.1,2.96]
[1727398738374,0.66614,2642.4,2642.2,1.1834]
[1727398738577,0.4013,2642.4,2642.2,1.1834]
[1727398738777,0.26483,2642.5,2642.2,1.1834]
[1727398739172,0.26483,2642.5,2642.3,2.96]
[1727398740381,0.26484,2642.4,2642.3,2.96]
[1727398741370,0.26484,2642.4,2642.3,6.26]
[1727398741972,0.26484,2642.4,2642.3,2.96]
[1727398742375,0.26485,2642.3,2642.2,1.1834]
[1727398742572,0.26485,2642.3,2642.2,5.8434]
[1727398742773,0.26485,2642.3,2642.2,2.5434]
[1727398745378,0.26485,2642.3,2642.2,0.7989]
[1727398745784,0.26485,2642.3,2642.2,2.1589]
[1727398748786,0.3733,2642.7,2642.2,2.1589]
[1727398748986,0.26484,2642.4,2642.2,0.7989]
[1727398750293,0.26485,2642.3,2642.2,0.7989]
[1727398750582,3.47265,2642.3,2642.2,0.7989]
[1727398750789,3.47265,2642.3,2642.2,2.1589]
[1727398750790,0.26485,2642.3,2642.2,2.1589]
[1727398752686,0.26487,2642.1,2642.0,1.7499]
[1727398752885,0.26486,2642.2,2642.0,1.7499]
[1727398754185,0.66046,2642.3,2642.0,1.7499]
[1727398754494,0.66046,2642.3,2642.2,1.36]
[1727398754688,0.3956,2642.3,2642.2,1.36]
[1727398754889,0.26485,2642.4,2642.2,1.36]
[1727398755191,0.4038,2642.6,2642.3,0.3862]
[1727398755394,1.45731382,2642.6,2642.5,1.36]
[1727398755795,5.24131382,2642.6,2642.5,1.36]
[1727398756091,1.45731382,2642.6,2642.5,1.36]
[1727398756796,5.24131382,2642.6,2642.5,1.36]
[1727398757093,0.26484,2642.4,2642.3,2.1487]
[1727398764694,3.2078,2642.5,2642.3,2.1487]
[1727398764695,3.47264,2642.5,2642.3,2.1487]
[1727398764896,0.26484,2642.4,2642.3,2.1487]
[1727398767293,3.2078,2642.5,2642.3,2.1487]
[1727398767495,3.2078,2642.5,2642.4,0.4003]
[1727398767698,0.26481,2642.7,2642.4,0.4003]
[1727398767902,0.26481,2642.7,2642.6,1.36]
[1727398768205,3.4726,2642.8,2642.6,1.36]
[1727398768503,3.2078,2642.8,2642.6,1.36]
[1727398768799,3.2078,2642.8,2642.7,0.4062]
[1727398769301,3.4726,2642.8,2642.7,0.4062]
[1727398769603,3.2078,2642.8,2642.7,0.4062]
[1727398771903,0.2648,2642.9,2642.7,0.4062]
[1727398772106,0.2648,2642.9,2642.8,2.1449]
[1727398773505,0.26479,2642.9,2642.8,2.1449]
[1727398776404,0.26479,2643.0,2642.8,2.1449]
[1727398777306,0.26479,2642.9,2642.8,2.1449]
[1727398777894,0.26479,2642.9,2642.8,1.36]
[1727398779401,0.13228068,2643.2,2642.8,1.36]
[1727398779602,0.3835,2643.1,2643.0,1.36]
[1727398780018,0.64827,2643.1,2643.0,1.36]
[1727398782108,0.26478,2643.0,2642.9,1.36]
[1727398783313,0.2648,2642.8,2642.7,0.4062]
[1727398783603,0.2648,2642.8,2642.7,1.7662]
[1727398787309,0.26479,2642.9,2642.7,1.7662]
[1727398787619,0.26478,2643.0,2642.8,1.36]
[1727398787809,0.26478,2643.0,2642.9,1.7596]
[1727398789919,0.3835,2643.1,2642.9,1.7596]
[1727398789920,0.64828,2643.1,2642.9,1.7596]
[1727398790220,0.3835,2643.1,2642.9,1.7596]
[1727398790715,0.64827,2643.1,2642.9,1.7596]
[1727398792623,0.26478,2643.0,2642.9,1.7596]
[1727398793011,0.26478,2643.0,2642.9,1.36]
[1727398793218,1.05449248,2643.0,2642.9,1.36]
[1727398793617,0.26478,2643.0,2642.9,1.36]
[1727398793914,3.784,2643.0,2642.7,0.4062]
[1727398794121,1.17801248,2642.9,2642.7,1.7662]
[1727398794320,0.6531,2642.9,2642.7,1.7662]
[1727398798218,0.3883,2642.9,2642.7,1.7662]
[1727398800627,0.64827,2643.1,2642.7,1.7662]
[1727398800817,0.64827,2643.1,2643.0,1.36]
[1727398801021,0.3835,2643.1,2643.0,1.36]
[1727398801220,0.26474,2643.4,2643.0,1.36]
[1727398801411,0.26474,2643.4,2643.2,1.36]
[1727398801412,3.2078,2643.4,2643.2,1.36]
[1727398801613,3.2078,2643.4,2643.3,0.782]
[1727398801820,4.5678,2643.4,2642.9,1.36]
[1727398802022,1.53752756,2643.3,2642.9,1.36]
[1727398802220,0.26478,2643.0,2642.9,1.36]
[1727398802421,0.26479,2642.9,2642.8,1.36]
[1727398802924,0.26478,2643.0,2642.8,1.36]
[1727398803227,0.7903186,2643.1,2642.9,1.36]
[1727398803430,0.7903186,2643.1,2643.0,1.36]
[1727398803431,0.26477,2643.1,2643.0,1.36]
[1727398803920,4.04797,2643.1,2643.0,1.36]
[1727398804637,0.26477,2643.1,2643.0,1.36]
[1727398806529,4.04797,2643.1,2643.0,1.36]
[1727398806924,0.26478,2643.0,2642.9,1.36]
[1727398807131,0.2648,2642.8,2642.7,1.36]
[1727398807832,1.03569,2642.9,2642.7,1.36]
[1727398808028,1.03569,2642.9,2642.8,1.36]
[1727398808521,0.2648,2642.8,2642.6,1.1673]
[1727398808727,0.7709,2642.9,2642.6,1.1673]
[1727398808728,1.82631625,2642.9,2642.7,1.36]
[1727398808933,0.79062625,2642.8,2642.7,1.36]
[1727398809127,1.03569,2642.9,2642.7,1.36]
[1727398810221,0.26481,2642.7,2642.6,1.1673]
[1727398810421,0.26481,2642.8,2642.6,1.1673]
[1727398810731,0.26481,2642.8,2642.3,4.28323366]
[1727398810732,6.9918,2642.8,2642.3,4.28323366]
[1727398811033,0.26489,2642.0,2641.8,0.088]
[1727398811229,0.26486,2642.2,2641.9,1.36]
[1727398811437,0.395,2642.1,2642.0,1.36]
[1727398812437,0.65987,2642.1,2642.0,1.36]
[1727398812620,0.65987,2642.1,2641.6,3.3]
[1727398812621,5.5398,2642.1,2641.6,3.3]
[1727398812825,0.26491,2641.8,2641.4,1.36]
[1727398813022,0.3815,2641.7,2641.5,1.36]
[1727398813931,0.79062625,2642.0,2641.5,1.36]
[1727398814135,0.65987,2642.1,2641.9,1.36]
[1727398814828,0.26488,2642.0,2641.9,1.36]
[1727398815033,0.26481,2642.7,2641.9,1.36]
[1727398815229,0.4078,2642.6,2642.0,4.3837]
[1727398815430,0.4078,2642.6,2642.5,1.36]
[1727398815735,4.1918,2642.6,2642.5,1.36]
[1727398816325,0.4078,2642.6,2642.5,1.36]
[1727398816533,3.2078,2642.9,2642.5,1.36]
[1727398816731,0.26481,2642.7,2642.6,2.1484]
[1727398817130,0.26481,2642.7,2642.6,0.7884]
[1727398817334,0.26483,2642.6,2642.1,4.28323366]
[1727398817525,4.9464,2642.9,2642.3,1.36]
[1727398817729,0.26483,2642.5,2642.3,1.36]
[1727398818031,0.3786,2642.4,2642.3,1.36]
[1727398818227,0.3786,2642.4,2642.2,0.7884]
[1727398818429,0.26487,2642.1,2641.8,0.98323366]
[1727398818638,0.26486,2642.2,2641.9,0.7755]
[1727398818834,3.2078,2642.3,2641.9,0.7755]
[1727398819142,0.26488,2642.0,2641.9,0.7755]
[1727398819325,3.2078,2642.3,2641.9,0.7755]